bitfinex-derivatives/quotes_BTCF0:USTF0_20250724
["timestamp","ask_amount","ask_price","bid_price","bid_amount"]
[1753340559493,2.31928128,117410.0,117400.0,0.6563379]
[1753340559885,2.07928128,117410.0,117400.0,0.8265866]
[1753340560085,2.07928128,117410.0,117400.0,0.6563379]
[1753340561591,2.36928128,117410.0,117400.0,0.0182979]
[1753340561793,2.36928128,117410.0,117400.0,0.6562979]
[1753340562293,2.39112595,117410.0,117400.0,0.6562979]
[1753340563397,2.39112595,117410.0,117400.0,0.8265466]
[1753340563587,1.96153827,117410.0,117400.0,0.8625366]
[1753340563782,1.9396936,117410.0,117400.0,1.11255428]
[1753340563986,0.08945,117410.0,117400.0,1.12080428]
[1753340564290,0.06455,117410.0,117400.0,1.12080428]
[1753340564489,0.03046,117410.0,117400.0,1.12080428]
[1753340565092,0.03046,117410.0,117400.0,0.8912166]
[1753340565290,0.54574188,117410.0,117400.0,0.8829666]
[1753340565489,0.3161542,117410.0,117400.0,0.8829666]
[1753340565684,0.3161542,117410.0,117400.0,1.11255428]
[1753340565891,0.3161542,117410.0,117400.0,0.8829666]
[1753340566091,0.3161542,117410.0,117400.0,1.11255428]
[1753340566491,0.3161542,117410.0,117400.0,0.8829666]
[1753340566692,0.3161542,117410.0,117400.0,1.11255428]
[1753340567089,0.54574188,117410.0,117400.0,0.0542879]
[1753340567391,0.54574188,117410.0,117400.0,0.63916]
[1753340567590,0.3161542,117410.0,117400.0,0.63916]
[1753340567793,0.54574188,117410.0,117400.0,0.001]
[1753340568194,0.3661542,117410.0,117400.0,0.63968]
[1753340568392,0.59574188,117410.0,117400.0,0.63968]
[1753340568800,0.6361542,117410.0,117400.0,0.63968]
[1753340569001,0.86574188,117410.0,117400.0,0.63968]
[1753340569199,0.88747044,117410.0,117400.0,0.001]
[1753340569401,0.88747044,117410.0,117400.0,0.63956]
[1753340569901,0.65788276,117410.0,117400.0,0.63956]
[1753340570102,0.88747044,117410.0,117400.0,0.63956]
[1753340570599,0.65788276,117410.0,117400.0,0.63956]
[1753340571001,0.88747044,117410.0,117400.0,0.63956]
[1753340571601,0.86574188,117410.0,117400.0,0.63956]
[1753340571796,0.8874687,117410.0,117400.0,0.63956]
[1753340571997,0.86574188,117410.0,117400.0,0.63904]
[1753340572593,0.88746328,117410.0,117400.0,0.63904]
[1753340572793,0.86574188,117410.0,117400.0,0.63904]
[1753340572996,0.6361542,117410.0,117400.0,0.63904]
[1753340573196,0.86574188,117410.0,117400.0,0.63904]
[1753340573597,0.88745905,117410.0,117400.0,0.63904]
[1753340576410,0.65787137,117410.0,117400.0,0.001]
[1753340576610,0.88745905,117410.0,117400.0,0.63832]
[1753340576809,0.88745905,117410.0,117400.0,0.001]
[1753340577010,0.88745905,117410.0,117400.0,0.63844]
[1753340577212,0.88745905,117410.0,117400.0,0.001]
[1753340577415,0.88745905,117410.0,117400.0,0.63848]
[1753340578105,0.65787137,117410.0,117400.0,0.63848]
[1753340578309,0.88745905,117410.0,117400.0,0.63848]
[1753340578706,0.65787137,117410.0,117400.0,0.001]
[1753340579410,0.88745905,117410.0,117400.0,0.001]
[1753340580214,0.65787137,117410.0,117400.0,0.001]
[1753340581014,0.88745905,117410.0,117400.0,0.001]
[1753340581615,0.65787137,117410.0,117400.0,0.001]
[1753340581807,0.65787137,117410.0,117400.0,0.26334768]
[1753340582005,0.33787137,117410.0,117400.0,0.69045416]
[1753340582210,0.31677137,117410.0,117400.0,0.24855443]
[1753340582416,0.2772642,117410.0,117400.0,0.88631443]
[1753340582615,0.2772642,117410.0,117400.0,0.07830563]
[1753340582917,0.2772642,117410.0,117400.0,0.03376]
[1753340582918,0.33660708,117410.0,117400.0,0.03376]
[1753340583711,0.3149042,117410.0,117400.0,0.03376]
[1753340583913,0.3149042,117410.0,117400.0,0.26334768]
[1753340584109,0.3149042,117410.0,117400.0,0.03376]
[1753340584916,0.3149042,117410.0,117400.0,0.26334768]
[1753340585318,0.3149042,117410.0,117400.0,0.45402638]
[1753340585617,0.3149042,117410.0,117400.0,0.28377768]
[1753340586206,0.3149042,117410.0,117400.0,0.45402638]
[1753340587217,0.3149042,117410.0,117400.0,0.05419]
[1753340587419,0.3149042,117410.0,117400.0,0.45402638]
[1753340587616,0.3149042,117410.0,117400.0,0.28377768]
[1753340588215,0.3149042,117410.0,117400.0,0.2244387]
[1753340588422,0.3149042,117410.0,117400.0,0.45402638]
[1753340588716,0.3149042,117410.0,117400.0,0.46086638]
[1753340588922,0.2348042,117410.0,117400.0,0.46086638]
[1753340589612,0.005,117410.0,117400.0,1.11080606]
[1753340589918,0.1752342,117410.0,117400.0,1.77532606]
[1753340590717,0.1752342,117410.0,117400.0,1.54573838]
[1753340591316,0.1752342,117410.0,117400.0,1.77532606]
[1753340591521,0.005,117410.0,117400.0,1.77532606]
[1753340591722,0.1752343,117410.0,117400.0,1.77532606]
[1753340592516,0.1752343,117410.0,117400.0,1.0661507]
[1753340592721,0.2012743,117410.0,117400.0,1.29573838]
[1753340592923,0.2012743,117410.0,117400.0,1.0661507]
[1753340593121,0.2570943,117410.0,117400.0,1.29573838]
[1753340593722,0.2570943,117410.0,117400.0,1.12370638]
[1753340593925,0.2894043,117410.0,117400.0,1.12370638]
[1753340594118,0.2894043,117410.0,117400.0,1.12350638]
[1753340595427,0.2733643,117410.0,117400.0,0.8939187]
[1753340595728,0.2570943,117410.0,117400.0,1.12350638]
[1753340596823,0.00308,117410.0,117400.0,1.12350638]
[1753340597130,0.00308,117410.0,117400.0,0.8939187]
[1753340597326,0.1993542,117410.0,117400.0,1.12350638]
[1753340597633,0.2551742,117410.0,117400.0,1.12350638]
[1753340598027,0.3090842,117410.0,117400.0,1.12350638]
[1753340598230,0.3090842,117410.0,117400.0,1.11666638]
[1753340598625,0.3090842,117410.0,117400.0,0.8870787]
[1753340598825,0.3090842,117410.0,117400.0,1.35117406]
[1753340598826,0.06099,117410.0,117400.0,1.35117406]
[1753340599236,0.02912,117410.0,117400.0,1.35117406]
[1753340599533,0.00308,117410.0,117400.0,0.8919987]
[1753340599730,0.00308,117410.0,117400.0,1.35117406]
[1753340600237,0.00308,117410.0,117400.0,1.52152606]
[1753340602328,0.02604,117420.0,117410.0,0.2252643]
[1753340602534,0.294629,117430.0,117420.0,0.2252498]
[1753340602833,0.294629,117430.0,117420.0,1.12195748]
[1753340603032,0.08186,117430.0,117420.0,1.12195748]
[1753340603331,0.02604,117430.0,117420.0,1.12195748]
[1753340604231,0.02604,117430.0,117420.0,1.13276758]
[1753340604832,0.02604,117430.0,117420.0,0.9031799]
[1753340605034,0.02904,117430.0,117420.0,1.13276758]
[1753340605334,0.02904,117430.0,117420.0,1.15011277]
[1753340605531,0.02604,117440.0,117430.0,0.2252352]
[1753340605735,0.02604,117440.0,117430.0,0.45482288]
[1753340606229,0.1962307,117440.0,117430.0,0.45482288]
[1753340606430,0.2520507,117440.0,117430.0,0.2252352]
[1753340606629,0.2520507,117440.0,117430.0,1.12046288]
[1753340606837,0.2530507,117440.0,117430.0,1.12146288]
[1753340607333,0.08286,117440.0,117430.0,1.12146288]
[1753340608032,0.2530507,117440.0,117430.0,1.12146288]
[1753340609039,0.2530507,117440.0,117430.0,0.45582288]
[1753340609238,0.2530507,117440.0,117430.0,1.12006288]
[1753340610435,0.2530507,117440.0,117430.0,1.41746288]
[1753340610634,0.2530507,117440.0,117430.0,1.12006288]
[1753340610838,0.08286,117440.0,117430.0,1.12006288]
[1753340611441,0.05891,117440.0,117430.0,1.12006288]
[1753340612338,0.02704,117440.0,117430.0,1.12006288]
[1753340613740,0.02659,117440.0,117430.0,0.45582288]
[1753340613937,0.02659,117440.0,117430.0,1.11782288]
[1753340617345,0.001,117440.0,117430.0,1.11782288]
[1753340617644,0.02559,117450.0,117440.0,0.2238807]
[1753340617842,0.02559,117450.0,117440.0,0.70011156]
[1753340618146,0.02559,117450.0,117440.0,0.47052388]
[1753340618443,0.06036,117450.0,117440.0,0.47052388]
[1753340618644,0.06036,117450.0,117440.0,0.70011156]
[1753340618853,0.06236,117450.0,117440.0,0.70011156]
[1753340619344,0.06236,117450.0,117440.0,0.47052388]
[1753340619745,0.002,117450.0,117440.0,0.47052388]
[1753340620144,0.002,117450.0,117440.0,0.70011156]
[1753340620444,0.08733,117450.0,117440.0,0.2409362]
[1753340620641,0.08733,117450.0,117440.0,0.47052388]
[1753340620840,0.2575062,117450.0,117440.0,1.12960388]
[1753340621041,0.2892662,117450.0,117440.0,1.12960388]
[1753340621241,0.3123662,117450.0,117440.0,0.8998562]
[1753340621545,0.3123662,117450.0,117440.0,1.12944388]
[1753340621840,0.14219,117450.0,117440.0,1.12944388]
[1753340622046,0.3123663,117450.0,117440.0,1.12944388]
[1753340622546,0.3123663,117450.0,117440.0,1.12880388]
[1753340623049,0.3123663,117450.0,117440.0,0.47052388]
[1753340623252,0.3123663,117450.0,117440.0,0.2368462]
[1753340623444,0.3123663,117450.0,117440.0,0.1872463]
[1753340623445,0.54195398,117450.0,117440.0,0.1872463]
[1753340623744,0.54195398,117450.0,117440.0,0.6747355]
[1753340624042,0.54195398,117450.0,117440.0,0.3778555]
[1753340624248,0.3123663,117450.0,117440.0,1.0358555]
[1753340624848,0.3123663,117450.0,117440.0,0.3778555]
[1753340625153,0.54195398,117450.0,117440.0,0.3778555]
[1753340625648,1.7555207,117440.0,117430.0,0.3608]
[1753340625849,0.3103952,117430.0,117420.0,1.03750519]
[1753340626755,0.53998288,117430.0,117420.0,1.03750519]
[1753340627149,0.56165026,117430.0,117420.0,1.03750519]
[1753340628050,0.53998288,117430.0,117420.0,1.03750519]
[1753340628257,0.57224205,117430.0,117420.0,1.03750519]
[1753340628553,0.57224205,117430.0,117420.0,1.03950519]
[1753340628755,0.56164965,117430.0,117420.0,1.03950519]
[1753340628960,0.56265029,117430.0,117420.0,1.03950519]
[1753340629258,0.56265029,117430.0,117420.0,1.03750519]
[1753340629446,0.54098288,117430.0,117420.0,1.20772489]
[1753340629652,0.3113952,117430.0,117420.0,1.20772489]
[1753340629852,0.54098288,117430.0,117420.0,1.20772489]
[1753340630057,0.56264787,117430.0,117420.0,1.20772489]
[1753340631060,0.56264787,117430.0,117420.0,1.03750519]
[1753340631257,0.56264787,117430.0,117420.0,1.20772499]
[1753340632152,0.3113952,117430.0,117420.0,1.20772499]
[1753340632348,0.56264402,117430.0,117420.0,1.20772499]
[1753340632553,0.54098288,117430.0,117420.0,1.20772499]
[1753340632858,0.56264429,117430.0,117420.0,1.20772499]
[1753340633158,0.54098288,117430.0,117420.0,1.03750519]
[1753340633358,0.54098288,117430.0,117420.0,0.3608]
[1753340633558,0.33305319,117430.0,117420.0,0.3608]
[1753340633761,0.56264087,117430.0,117420.0,0.3608]
[1753340634455,0.56263636,117430.0,117420.0,0.3608]
[1753340634849,0.56263653,117430.0,117420.0,0.3608]
[1753340635660,0.33304885,117430.0,117420.0,0.3608]
[1753340635859,0.56263653,117430.0,117420.0,0.3608]
[1753340636157,0.54098288,117430.0,117420.0,0.3608]
[1753340636357,0.56262647,117430.0,117420.0,0.3608]
[1753340636652,0.33303879,117430.0,117420.0,0.3608]
[1753340636861,0.56262647,117430.0,117420.0,0.3608]
[1753340637853,0.33303879,117430.0,117420.0,0.3608]
[1753340638049,0.56262647,117430.0,117420.0,0.3608]
[1753340638966,0.33303879,117430.0,117420.0,0.3608]
[1753340639154,0.56262647,117430.0,117420.0,0.3608]
[1753340641961,0.33303879,117430.0,117420.0,0.3608]
[1753340642160,0.56262647,117430.0,117420.0,0.3608]
[1753340642664,0.54098288,117430.0,117420.0,0.3608]
[1753340642862,0.3113952,117430.0,117420.0,0.3608]
[1753340643264,0.54098288,117430.0,117420.0,0.3608]
[1753340643665,0.54098288,117430.0,117420.0,0.377]
[1753340644166,0.3113952,117430.0,117420.0,0.377]
[1753340644365,0.54098288,117430.0,117420.0,0.377]
[1753340645659,0.3113952,117430.0,117420.0,0.377]
[1753340645860,0.54098288,117430.0,117420.0,0.377]
[1753340648674,0.56260399,117430.0,117420.0,0.377]
[1753340649762,0.56260399,117430.0,117420.0,0.3608]
[1753340651470,0.33301631,117430.0,117420.0,0.3608]
[1753340651676,0.33301631,117430.0,117420.0,1.01424]
[1753340651863,0.56260399,117430.0,117420.0,1.01424]
[1753340652470,0.33301631,117430.0,117420.0,1.01424]
[1753340652672,0.56260399,117430.0,117420.0,1.01424]
[1753340653070,0.33301631,117430.0,117420.0,1.01424]
[1753340653374,0.56260399,117430.0,117420.0,1.01424]
[1753340654781,0.56260399,117430.0,117420.0,1.2293697]
[1753340654978,0.33301631,117430.0,117420.0,1.2293697]
[1753340655181,0.56260399,117430.0,117420.0,1.2293697]
[1753340655383,0.33301631,117430.0,117420.0,1.2293697]
[1753340655579,0.56260399,117430.0,117420.0,1.05915]
[1753340656373,0.56260399,117430.0,117420.0,1.03872]
[1753340656677,0.56260399,117430.0,117420.0,0.377]
[1753340656878,0.56260399,117430.0,117420.0,1.02984]
[1753340657075,0.13633,117420.0,117400.0,0.3608]
[1753340657381,0.53615188,117410.0,117400.0,1.01284]
[1753340657591,0.32818531,117410.0,117400.0,1.01284]
[1753340657885,0.32826954,117410.0,117400.0,1.01284]
[1753340658080,0.55785722,117410.0,117400.0,1.01284]
[1753340658581,0.55785722,117410.0,117400.0,1.0452]
[1753340659084,0.55785722,117410.0,117400.0,1.0432]
[1753340659387,0.32826954,117410.0,117400.0,1.0442]
[1753340659580,0.55785722,117410.0,117400.0,1.0442]
[1753340659976,0.32826954,117410.0,117400.0,1.2134487]
[1753340660182,0.32926954,117410.0,117400.0,1.0432]
[1753340660378,0.55885722,117410.0,117400.0,1.0432]
[1753340660985,0.32926954,117410.0,117400.0,1.0432]
[1753340661190,0.55885722,117410.0,117400.0,1.0432]
[1753340661684,0.55885722,117410.0,117400.0,0.3608]
[1753340661889,0.55885722,117410.0,117400.0,1.02564]
[1753340664291,0.32926954,117410.0,117400.0,1.02564]
[1753340664483,0.55885722,117410.0,117400.0,1.02564]
[1753340664889,0.55885722,117410.0,117400.0,1.2203687]
[1753340665086,0.32926954,117410.0,117400.0,1.2203687]
[1753340665286,0.55885722,117410.0,117400.0,1.2203687]
[1753340665594,0.32926954,117410.0,117400.0,1.05012]
[1753340665793,0.55885722,117410.0,117400.0,1.02564]
[1753340666186,0.32926954,117410.0,117400.0,1.02564]
[1753340666499,0.55885722,117410.0,117400.0,1.02564]
[1753340666686,0.32926954,117410.0,117400.0,1.02564]
[1753340666887,0.55885722,117410.0,117400.0,1.02564]
[1753340667590,0.32926954,117410.0,117400.0,1.02564]
[1753340667790,0.55885722,117410.0,117400.0,1.05012]
[1753340668394,0.32926954,117410.0,117400.0,1.05012]
[1753340668592,0.55885722,117410.0,117400.0,1.2203687]
[1753340668794,0.55885722,117410.0,117400.0,1.07055]
[1753340669196,0.55885722,117410.0,117400.0,1.2407987]
[1753340669894,0.55885722,117410.0,117400.0,1.07055]
[1753340670492,0.32926954,117410.0,117400.0,1.05012]
[1753340670693,0.55885722,117410.0,117400.0,1.05012]
[1753340670996,0.55885722,117410.0,117400.0,1.07055]
[1753340671589,0.32926954,117410.0,117400.0,1.07055]
[1753340671789,0.55885722,117410.0,117400.0,1.05012]
[1753340673000,0.55885722,117410.0,117400.0,1.02564]
[1753340673594,0.53715188,117410.0,117400.0,1.02564]
[1753340673797,0.55819805,117410.0,117400.0,1.02564]
[1753340674800,0.55819729,117410.0,117400.0,1.02564]
[1753340675399,0.32860961,117410.0,117400.0,1.02564]
[1753340675599,0.55819729,117410.0,117400.0,1.02564]
[1753340675997,0.55819729,117410.0,117400.0,0.3608]
[1753340676599,0.3071732,117390.0,117380.0,0.40196]
[1753340676902,0.34697373,117390.0,117380.0,1.06588]
[1753340677305,0.55551801,117390.0,117380.0,1.06588]
[1753340677597,0.34697099,117390.0,117380.0,1.06588]
[1753340677802,0.32593033,117390.0,117380.0,1.06776]
[1753340678002,0.55551801,117390.0,117380.0,1.06876]
[1753340678408,0.57655542,117390.0,117380.0,1.09179]
[1753340679893,0.57655542,117390.0,117380.0,1.08979]
[1753340680097,0.34696774,117390.0,117380.0,1.06676]
[1753340680304,0.55551801,117390.0,117380.0,1.06676]
[1753340680797,0.74557567,117390.0,117380.0,0.001]
[1753340680993,0.57519967,117390.0,117380.0,0.001]
[1753340681396,0.57519967,117390.0,117350.0,0.2554696]
[1753340681397,0.05409,117380.0,117350.0,0.3608]
[1753340681601,0.3072296,117350.0,117340.0,0.3608]
[1753340682101,0.2244241,117340.0,117330.0,0.3608]
[1753340682400,0.3072441,117340.0,117330.0,0.3608]
[1753340682698,0.53683178,117340.0,117330.0,0.3608]
[1753340683306,0.3072586,117330.0,117320.0,0.3608]
[1753340683501,0.3022586,117330.0,117320.0,0.3608]
[1753340683798,0.2823832,117320.0,117310.0,1.02528]
[1753340684008,0.2803832,117320.0,117310.0,1.09551]
[1753340684205,0.50997088,117320.0,117310.0,1.09551]
[1753340684506,0.50997088,117320.0,117310.0,1.09631]
[1753340684707,0.2803832,117320.0,117310.0,1.09631]
[1753340684904,0.50997088,117320.0,117310.0,0.42499]
[1753340685300,0.50997088,117320.0,117310.0,0.3608]
[1753340685501,0.2803832,117320.0,117310.0,0.37615]
[1753340685707,0.3072893,117310.0,117300.0,0.38887574]
[1753340686007,0.53687698,117310.0,117300.0,0.38887574]
[1753340686508,1.8072893,117310.0,117300.0,1.05931574]
[1753340686707,2.03687698,117310.0,117300.0,1.05931574]
[1753340686901,2.03687698,117310.0,117300.0,0.38887574]
[1753340687508,2.03687698,117310.0,117300.0,0.02807574]
[1753340687802,1.8072893,117310.0,117300.0,0.38887574]
[1753340688008,2.03687698,117310.0,117300.0,0.38887574]
[1753340688203,1.8072893,117310.0,117300.0,0.37352574]
[1753340688711,2.03787698,117310.0,117300.0,0.37352574]
[1753340688913,2.04187698,117310.0,117300.0,0.37452574]
[1753340689903,1.8122893,117310.0,117300.0,0.37452574]
[1753340690110,2.04187698,117310.0,117300.0,0.37452574]
[1753340690719,2.04187698,117310.0,117300.0,0.38987574]
[1753340691106,1.8122893,117310.0,117300.0,0.43871574]
[1753340691612,2.04187698,117310.0,117300.0,0.41568574]
[1753340692110,1.8122893,117310.0,117300.0,0.41568574]
[1753340692317,2.04187698,117310.0,117300.0,0.41568574]
[1753340693217,2.04187698,117310.0,117300.0,0.37452574]
[1753340694012,2.04187698,117310.0,117300.0,0.38987574]
[1753340694419,2.04487698,117310.0,117300.0,0.38987574]
[1753340694619,2.04387698,117310.0,117300.0,0.38987574]
[1753340694820,2.04887698,117310.0,117300.0,0.39087574]
[1753340695215,1.8192893,117310.0,117300.0,0.39087574]
[1753340695512,2.04887698,117310.0,117300.0,0.01472574]
[1753340695717,2.04887698,117310.0,117300.0,0.37552574]
[1753340696322,1.8192893,117310.0,117300.0,0.37552574]
[1753340696518,2.04887698,117310.0,117300.0,0.37552574]
[1753340697222,1.8192893,117310.0,117300.0,0.37552574]
[1753340697523,2.04887698,117310.0,117300.0,0.37552574]
[1753340697820,2.04887698,117310.0,117300.0,0.39087574]
[1753340699023,0.1703929,117300.0,117290.0,0.38383]
[1753340699218,0.53689058,117300.0,117290.0,0.42731]
[1753340699414,0.53689058,117300.0,117290.0,0.06651]
[1753340699923,0.3073029,117300.0,117290.0,0.06651]
[1753340700118,0.54089058,117300.0,117290.0,0.44874]
[1753340700322,0.2572129,117300.0,117290.0,0.6231974]
[1753340700526,0.2077029,117300.0,117290.0,0.85278508]
[1753340700927,0.54089058,117300.0,117290.0,0.6231974]
[1753340701222,0.3113029,117300.0,117290.0,0.77282]
[1753340701418,0.54489058,117300.0,117290.0,1.3050274]
[1753340701622,0.3153029,117300.0,117290.0,1.3050274]
[1753340701818,0.3153029,117300.0,117290.0,0.6201474]
[1753340702127,0.2612129,117300.0,117290.0,1.3082974]
[1753340702337,0.2363229,117300.0,117290.0,1.3082974]
[1753340702825,0.1783929,117300.0,117290.0,1.53788508]
[1753340703023,0.1783928,117300.0,117290.0,1.53788508]
[1753340703420,0.1783928,117300.0,117290.0,1.3082974]
[1753340703626,0.1783928,117300.0,117290.0,1.53788508]
[1753340704320,0.2945328,117300.0,117290.0,0.68327768]
[1753340704526,0.2945328,117300.0,117290.0,1.13733]
[1753340704723,0.3157628,117300.0,117290.0,1.36691768]
[1753340704925,0.3157628,117300.0,117290.0,1.3037873]
[1753340705126,0.3157628,117300.0,117290.0,0.44974]
[1753340705326,0.3157628,117300.0,117290.0,1.1321]
[1753340705521,0.3157628,117300.0,117290.0,1.13186]
[1753340706127,0.3157628,117300.0,117290.0,1.3022673]
[1753340706925,0.3157628,117300.0,117290.0,1.3011473]
[1753340707227,0.3137628,117300.0,117290.0,1.13074]
[1753340707528,0.3137628,117300.0,117290.0,1.3011473]
[1753340707728,0.3097628,117300.0,117290.0,1.52973498]
[1753340707929,0.3127628,117300.0,117290.0,1.53073498]
[1753340708126,0.3107628,117300.0,117290.0,0.42831]
[1753340708325,0.3107628,117300.0,117290.0,0.42931]
[1753340708326,0.56056416,117300.0,117290.0,0.42931]
[1753340708525,0.3107628,117300.0,117290.0,0.42931]
[1753340708824,0.54035048,117300.0,117290.0,0.42931]
[1753340709019,0.54035048,117300.0,117290.0,1.12491]
[1753340709524,0.33299889,117300.0,117290.0,1.12491]
[1753340710323,0.56222097,117300.0,117290.0,1.12491]
[1753340710725,0.33263329,117300.0,117290.0,1.12491]
[1753340710923,0.55922097,117300.0,117290.0,1.12391]
[1753340711124,0.55722097,117300.0,117290.0,1.12291]
[1753340711428,0.55722097,117300.0,117270.0,0.3608]
[1753340711429,0.3077918,117280.0,117270.0,0.3608]
[1753340711726,0.3078354,117250.0,117240.0,0.67299002]
[1753340711924,0.32350589,117250.0,117240.0,1.30732]
[1753340712520,0.32350589,117250.0,117240.0,1.31127]
[1753340712723,0.29077589,117250.0,117240.0,1.54085768]
[1753340712928,0.27371589,117250.0,117240.0,1.31127]
[1753340713125,0.32770589,117250.0,117240.0,0.53128]
[1753340713325,0.30785,117240.0,117230.0,0.0001]
[1753340713524,0.32874098,117240.0,117230.0,0.0001]
[1753340713724,0.55832866,117240.0,117230.0,0.0001]
[1753340713919,0.32874098,117240.0,117230.0,0.0001]
[1753340714232,0.3078936,117210.0,117200.0,1.06076]
[1753340714432,0.3068936,117210.0,117200.0,1.07807195]
[1753340714631,0.27476589,117210.0,117200.0,1.33469005]
[1753340714933,0.19138589,117210.0,117200.0,1.23386773]
[1753340715129,0.19138589,117210.0,117200.0,1.92882773]
[1753340715329,0.1705236,117210.0,117200.0,1.00428005]
[1753340715530,0.2539036,117210.0,117200.0,0.80291195]
[1753340715733,0.5583137,117210.0,117200.0,0.80291195]
[1753340715930,0.5583137,117210.0,117200.0,0.06788195]
[1753340716130,0.33372602,117210.0,117200.0,0.76644195]
[1753340716336,0.33372602,117210.0,117200.0,0.007]
[1753340716337,0.5633137,117210.0,117200.0,0.007]
[1753340716530,0.56328982,117210.0,117200.0,1.11077]
[1753340716729,0.69450174,117210.0,117200.0,0.7756]
[1753340716935,0.33370174,117210.0,117200.0,0.74997]
[1753340717124,0.33370174,117210.0,117200.0,0.41337]
[1753340717324,0.32970174,117210.0,117200.0,1.10961]
[1753340717529,0.69050174,117210.0,117200.0,0.75181]
[1753340717734,1.03122214,117210.0,117200.0,0.03288]
[1753340718035,0.84106214,117210.0,117200.0,1e-07]
[1753340718234,1.22090024,117210.0,117200.0,1e-07]
[1753340718425,0.86010024,117210.0,117200.0,1e-07]
[1753340718627,0.3079221,117190.0,117180.0,0.3608]
[1753340718833,0.6456425,117190.0,117180.0,0.3608]
[1753340719035,0.2245567,117180.0,117170.0,0.09369255]
[1753340719229,0.3079367,117180.0,117170.0,0.07901255]
[1753340720029,0.3079367,117180.0,117170.0,0.41418255]
[1753340720243,0.3079367,117180.0,117170.0,1.15345255]
[1753340720438,0.3079367,117180.0,117170.0,0.07901255]
[1753340721544,0.3079367,117180.0,117170.0,0.00781255]
[1753340722132,0.6456571,117180.0,117170.0,0.00781255]
[1753340722537,1.0064571,117180.0,117170.0,5e-08]
[1753340723330,1.0054571,117180.0,117170.0,5e-08]
[1753340723840,0.3069367,117180.0,117170.0,0.05219005]
[1753340724030,0.3069367,117180.0,117170.0,0.45744005]
[1753340724231,0.1695667,117180.0,117170.0,0.80325045]
[1753340724853,0.1705667,117180.0,117170.0,1.67559185]
[1753340725238,0.3079367,117180.0,117170.0,0.05319005]
[1753340725436,0.3079367,117180.0,117170.0,0.45844005]
[1753340726238,0.2539467,117180.0,117170.0,0.46653005]
[1753340726439,0.1705667,117180.0,117170.0,0.63711145]
[1753340726639,0.2306967,117180.0,117170.0,1.16885005]
[1753340727344,0.2306967,117180.0,117170.0,1.16785005]
[1753340727740,0.3089367,117180.0,117170.0,0.41599005]
[1753340727942,0.3089367,117180.0,117170.0,1.11499005]
[1753340728944,0.3089367,117180.0,117170.0,1.11315005]
[1753340729145,0.3089367,117180.0,117170.0,0.75235005]
[1753340729440,0.3089367,117180.0,117170.0,1.11315005]
[1753340729644,0.3089367,117180.0,117170.0,0.01937005]
[1753340729849,0.6697367,117180.0,117170.0,0.01937005]
[1753340730245,0.3089367,117180.0,117170.0,0.01937005]
[1753340730445,0.3089367,117180.0,117170.0,0.05519005]
[1753340731152,0.6697367,117180.0,117170.0,0.71629005]
[1753340731351,0.68671524,117180.0,117170.0,0.69992005]
[1753340733050,1.72075564,117180.0,117170.0,5e-08]
[1753340733441,1.38303524,117180.0,117170.0,5e-08]
[1753340733745,1.72075564,117180.0,117170.0,5e-08]
[1753340734347,0.2281714,117170.0,117160.0,1e-08]
[1753340734548,1.0108318,117170.0,117160.0,1e-08]
[1753340734850,1.7041918,117170.0,117160.0,1e-08]
[1753340735147,1.0248494,117170.0,117160.0,1e-08]
[1753340735359,1.0242894,117170.0,117160.0,1e-08]
[1753340735651,0.3324894,117170.0,117160.0,0.21014591]
[1753340735950,0.3324894,117170.0,117160.0,0.05622001]
[1753340736251,0.3334894,117170.0,117160.0,0.05622001]
[1753340736549,0.3334894,117170.0,117160.0,0.00400001]
[1753340736754,0.6712098,117170.0,117160.0,0.00400001]
[1753340737052,0.3334894,117170.0,117160.0,0.00400001]
[1753340737438,0.6712098,117170.0,117160.0,0.00400001]
[1753340738047,0.6942894,117170.0,117160.0,0.00400001]
[1753340738257,1.0320098,117170.0,117160.0,0.00400001]
[1753340738448,0.6942894,117170.0,117160.0,0.00400001]
[1753340738751,1.0320098,117170.0,117160.0,0.00400001]
[1753340739057,1.22332326,117170.0,117160.0,1e-08]
[1753340739245,0.2108705,117150.0,117140.0,0.3608]
[1753340739446,0.66938181,117150.0,117140.0,0.3608]
[1753340740047,0.33166141,117150.0,117140.0,0.3608]
[1753340740848,0.33166141,117150.0,117140.0,0.37802]
[1753340741052,0.3123405,117150.0,117140.0,0.4573]
[1753340741355,0.33302649,117150.0,117140.0,0.4573]
[1753340742154,0.33402649,117150.0,117140.0,0.4573]
[1753340742754,0.33302649,117150.0,117140.0,0.4573]
[1753340742956,0.33402649,117150.0,117140.0,0.41302]
[1753340743350,0.33402649,117150.0,117140.0,0.37802]
[1753340743857,0.33502649,117150.0,117140.0,0.3628]
[1753340744246,0.67274689,117150.0,117140.0,0.3628]
[1753340744853,0.33502649,117150.0,117140.0,0.40235]
[1753340745059,0.67274689,117150.0,117140.0,0.41502]
[1753340745558,0.33502649,117150.0,117140.0,0.38002]
[1753340745752,0.67174689,117150.0,117140.0,0.41302]
[1753340745953,0.67274689,117150.0,117140.0,0.41602]
[1753340746348,0.33502649,117150.0,117140.0,0.41602]
[1753340746552,0.67274689,117150.0,117140.0,0.3638]
[1753340746952,0.33502649,117150.0,117140.0,0.3638]
[1753340747150,0.33502649,117150.0,117140.0,0.4603]
[1753340747349,0.27543649,117150.0,117140.0,1.404165]
[1753340747560,0.28143649,117150.0,117140.0,1.405165]
[1753340748355,0.27843649,117150.0,117140.0,0.46622]
[1753340748556,0.67674689,117150.0,117140.0,0.40135]
[1753340748755,0.67674689,117150.0,117140.0,1.14542]
[1753340748963,0.33902649,117150.0,117140.0,0.78462]
[1753340749158,0.33902649,117150.0,117140.0,0.81962]
[1753340749758,0.33902649,117150.0,117140.0,0.05322]
[1753340749959,0.33902649,117150.0,117140.0,0.81962]
[1753340750254,0.33902649,117150.0,117140.0,1.2247]
[1753340751458,0.67674689,117150.0,117140.0,0.3618]
[1753340751662,0.67674689,117150.0,117140.0,0.37902]
[1753340751955,0.33902649,117150.0,117140.0,0.4583]
[1753340752161,0.33902649,117150.0,117140.0,1.21974]
[1753340752362,0.40671248,117150.0,117140.0,1.21974]
[1753340752962,0.74443288,117150.0,117140.0,0.77966]
[1753340753662,0.40671248,117150.0,117140.0,0.81302]
[1753340753861,0.40671248,117150.0,117140.0,1.17382]
[1753340754064,0.40671248,117150.0,117140.0,1.2181]
[1753340754764,0.40671248,117150.0,117140.0,1.17382]
[1753340755068,0.74443288,117150.0,117140.0,1.17382]
[1753340755260,0.40671248,117150.0,117140.0,0.41402]
[1753340755463,0.40671248,117150.0,117140.0,1.17098]
[1753340755658,0.74443288,117150.0,117140.0,0.41402]
[1753340755863,0.40671248,117150.0,117140.0,0.41402]